bitfinex-derivatives/quotes_ETHF0:USTF0_20250504
["timestamp","ask_amount","ask_price","bid_price","bid_amount"]
[1746387914412,0.8331,1831.1,1830.6,1.6216]
[1746387914600,2.5247,1831.0,1830.8,4.3]
[1746387914805,1.708,1830.9,1830.8,7.735]
[1746387915512,1.708,1830.9,1830.8,9.3566]
[1746387916214,5.396,1830.9,1830.8,9.3566]
[1746387919423,5.396,1830.9,1830.8,6.1488]
[1746387919713,5.396,1830.9,1830.8,9.3566]
[1746387922217,5.396,1830.9,1830.8,7.735]
[1746387924509,5.396,1830.9,1830.8,4.5272]
[1746387924713,5.396,1830.9,1830.8,7.735]
[1746387928419,6.2239,1830.9,1830.8,7.735]
[1746387930515,6.2239,1830.9,1830.8,4.5272]
[1746387930716,6.2239,1830.9,1830.8,7.735]
[1746387934518,6.2239,1830.9,1830.8,4.5272]
[1746387934725,6.2239,1830.9,1830.8,7.735]
[1746387935126,6.2239,1830.9,1830.8,4.5272]
[1746387935529,6.2239,1830.9,1830.8,7.735]
[1746387939829,6.2239,1830.9,1830.8,9.3687]
[1746387941518,5.396,1830.9,1830.8,9.3687]
[1746387941726,3.688,1830.9,1830.8,9.3687]
[1746387942331,5.29591151,1831.2,1831.1,1.09207]
[1746387942520,5.29591151,1831.2,1831.1,7.73387]
[1746387943130,8.98391151,1831.2,1831.1,7.73387]
[1746387943335,8.98391151,1831.2,1831.1,8.54197]
[1746387946137,5.3263,1831.2,1831.1,8.54197]
[1746387946337,5.3263,1831.2,1831.1,10.26107]
[1746387954845,11.41831,1831.2,1831.1,6.6418]
[1746387955036,1.09209,1831.1,1830.9,8.35757849]
[1746387955340,0.8078,1831.0,1830.9,8.35757849]
[1746387955541,1.5984,1831.0,1830.9,8.35757849]
[1746387955743,3.2882,1831.0,1830.9,8.35757849]
[1746387956141,6.9762,1831.0,1830.9,8.35757849]
[1746387958039,6.9762,1831.0,1830.9,1.09214]
[1746387958746,8.06836,1831.0,1830.8,3.434]
[1746387958943,1.7378,1830.9,1830.8,4.52622]
[1746387959142,5.4258,1830.9,1830.8,4.52622]
[1746387961945,5.4258,1830.9,1830.8,6.11262]
[1746387962452,3.688,1830.9,1830.8,6.11262]
[1746387969647,3.688,1830.9,1830.8,13.37805849]
[1746387970147,1.6358,1831.1,1831.0,1.09213]
[1746387970954,1.6358,1831.1,1831.0,2.75483]
[1746387971145,5.3238,1831.1,1831.0,2.75483]
[1746387979763,5.3238,1831.1,1831.0,5.96263]
[1746387985263,5.3238,1831.1,1831.0,7.73293]
[1746387985665,5.3238,1831.1,1831.0,4.52513]
[1746387988669,6.41587,1831.1,1831.0,4.52513]
[1746387988870,5.3238,1831.1,1831.0,4.52513]
[1746387989168,6.41587,1831.1,1831.0,4.52513]
[1746387989765,6.41587,1831.1,1831.0,3.433]
[1746387991768,6.41587,1831.1,1830.9,1.09216]
[1746387991769,1.09213,1831.0,1830.9,1.09216]
[1746387991971,3.58463,1831.0,1830.9,1.09216]
[1746387992172,7.27263,1831.0,1830.9,1.09216]
[1746387992376,6.1805,1831.0,1830.9,1.09216]
[1746387992671,7.27263,1831.0,1830.9,1.09216]
[1746387994366,1.09219,1830.9,1830.8,4.30001]
[1746387994566,3.51319,1830.9,1830.8,4.30001]
[1746387994774,2.421,1830.9,1830.8,4.30001]
[1746387995072,6.109,1830.9,1830.8,4.30001]
[1746387995372,7.20119,1830.9,1830.8,4.30001]
[1746387996172,6.109,1830.9,1830.8,4.30001]
[1746388000172,6.109,1830.9,1830.8,5.08881]
[1746388000981,7.20119,1830.9,1830.8,5.08881]
[1746388001679,6.109,1830.9,1830.8,5.08881]
[1746388002080,7.20119,1830.9,1830.8,3.9966]
[1746388002279,7.20119,1830.9,1830.8,3.2078]
[1746388002474,1.09225,1830.8,1830.7,3.433]
[1746388002780,3.54105,1830.8,1830.7,3.433]
[1746388002978,1.09236,1830.7,1830.5,4.30018]
[1746388003179,0.8317,1830.6,1830.5,4.30018]
[1746388003384,1.6725,1830.6,1830.5,4.30018]
[1746388003583,3.2805,1830.6,1830.5,4.30018]
[1746388004087,6.9685,1830.6,1830.5,4.30018]
[1746388004290,8.06087,1830.6,1830.5,3.2078]
[1746388004988,8.06087,1830.6,1830.5,4.30023]
[1746388005187,6.9685,1830.6,1830.5,4.30023]
[1746388006386,8.06087,1830.6,1830.5,3.2078]
[1746388007091,8.06087,1830.6,1830.5,14.09735772]
[1746388007486,8.06087,1830.6,1830.5,10.88955772]
[1746388007683,8.06087,1830.6,1830.5,11.98198772]
[1746388008393,8.06087,1830.6,1830.5,10.88955772]
[1746388008786,8.06087,1830.6,1830.4,1.09248]
[1746388008991,2.81833,1830.5,1830.4,1.09248]
[1746388009592,1.09249,1830.4,1830.3,5.13694]
[1746388009794,2.81839,1830.4,1830.3,4.0444]
[1746388010191,6.50639,1830.4,1830.3,4.0444]
[1746388010581,6.50639,1830.4,1830.3,3.2078]
[1746388012693,6.50639,1830.4,1830.1,8.57004]
[1746388012694,1.09261,1830.2,1830.1,8.57004]
[1746388013293,4.78061,1830.2,1830.1,6.6408]
[1746388013492,6.43931,1830.2,1830.1,6.6408]
[1746388015595,1.09267,1830.1,1830.0,4.49473]
[1746388015795,2.68637,1830.1,1830.0,3.402]
[1746388016197,6.37437,1830.1,1830.0,3.402]
[1746388017690,6.37437,1830.1,1830.0,0.8288]
[1746388017896,1.09273,1830.0,1829.9,14.09585843]
[1746388018197,3.688,1830.0,1829.9,16.02164843]
[1746388018397,3.688,1830.0,1829.9,17.73454843]
[1746388018398,4.78073,1830.0,1829.9,17.73454843]
[1746388018598,6.38103,1830.0,1829.9,17.73454843]
[1746388018897,6.38103,1830.0,1829.9,16.64175843]
[1746388019999,6.38103,1830.0,1829.9,14.09585843]
[1746388023106,6.38103,1830.0,1829.9,10.88805843]
[1746388027306,12.20503,1830.0,1829.9,10.88805843]
[1746388028108,13.06033,1830.0,1829.9,10.88805843]
[1746388035416,1.09279,1829.9,1829.8,14.51741125]
[1746388035611,15.24139,1829.9,1829.8,8.06726968]
[1746388035915,20.24139,1829.9,1829.8,1.31001968]
[1746388036412,23.92939,1829.9,1829.8,1.31001968]
[1746388036609,1.09285,1829.8,1829.7,16.87981374]
[1746388036809,3.56255,1829.8,1829.7,16.87981374]
[1746388037009,8.56255,1829.8,1829.7,14.50016374]
[1746388037210,12.25055,1829.8,1829.7,12.72068374]
[1746388037409,12.25055,1829.8,1829.7,11.04806374]
[1746388037615,12.25055,1829.8,1829.7,9.37576374]
[1746388037815,12.25055,1829.8,1829.7,7.70353374]
[1746388038118,7.25055,1829.8,1829.7,6.07227374]
[1746388038309,7.25055,1829.8,1829.7,4.43126374]
[1746388038509,7.25055,1829.8,1829.7,3.12607374]
[1746388038713,7.25055,1829.8,1829.7,0.02966374]
[1746388039018,18.07455,1829.8,1829.7,3.74e-06]
[1746388040317,21.28235,1829.8,1829.7,3.74e-06]
[1746388040618,16.28235,1829.8,1829.7,3.74e-06]
[1746388045218,13.07455,1829.8,1829.7,3.74e-06]
[1746388045523,16.28235,1829.8,1829.7,3.74e-06]
[1746388046522,19.92955272,1829.8,1829.7,3.74e-06]
[1746388051225,1.09303,1829.5,1829.4,21.77611687]
[1746388051421,13.55983,1829.5,1829.4,21.77611687]
[1746388052121,18.07673,1829.5,1829.4,21.77611687]
[1746388052426,18.51683528,1829.5,1829.4,21.77611687]
[1746388053130,1.09309,1829.4,1829.3,16.79161482]
[1746388053426,9.31249,1829.4,1829.3,13.73918482]
[1746388054025,9.31249,1829.4,1829.3,12.47272482]
[1746388054227,13.00049,1829.4,1829.3,9.51926482]
[1746388054526,13.00049,1829.4,1829.3,7.77828482]
[1746388054724,13.00049,1829.4,1829.3,6.03744482]
[1746388054924,13.00049,1829.4,1829.3,4.29674482]
[1746388055126,13.00049,1829.4,1829.3,1.07171482]
[1746388056725,13.00049,1829.4,1829.3,4.82e-06]
[1746388058030,17.34483306,1829.4,1829.3,4.82e-06]
[1746388058226,13.00049,1829.4,1829.3,4.82e-06]
[1746388058427,1.09321,1829.2,1829.1,29.0348225]
[1746388058621,7.73701,1829.2,1829.1,29.0348225]
[1746388059127,11.42501,1829.2,1829.1,29.0348225]
[1746388062028,11.42501,1829.2,1829.1,30.6118225]
[1746388062429,17.24901,1829.2,1829.1,30.6118225]
[1746388063932,18.95071,1829.2,1829.1,30.6118225]
[1746388064831,17.24901,1829.2,1829.1,30.6118225]
[1746388065835,18.95071,1829.2,1829.1,30.6118225]
[1746388069028,17.24901,1829.2,1829.1,30.6118225]
[1746388072931,6.8958,1829.2,1829.1,31.7050825]
[1746388073241,3.63265881,1829.3,1829.2,1.09321]
[1746388073426,3.63265881,1829.3,1829.2,2.76701]
[1746388073626,3.63265881,1829.3,1829.2,7.76701]
[1746388073838,5.44887017,1829.3,1829.2,7.76701]
[1746388074335,9.13687017,1829.3,1829.2,7.76701]
[1746388076841,9.13687017,1829.3,1829.2,2.76701]
[1746388077046,9.13687017,1829.3,1829.2,7.76701]
[1746388077639,9.13687017,1829.3,1829.2,2.76701]
[1746388077844,3.688,1829.3,1829.2,2.76701]
[1746388078238,4.78115,1829.3,1829.2,2.76701]
[1746388078438,3.688,1829.3,1829.2,2.76701]
[1746388087653,2.31174,1829.3,1829.2,2.76701]
[1746388090454,2.31174,1829.3,1829.2,5.97481]
[1746388093455,3.89644,1829.3,1829.2,2.76701]
[1746388097760,3.89644,1829.3,1829.2,1.09321]
[1746388101862,4.74074,1829.3,1829.2,1.09321]
[1746388102060,1.09321,1829.2,1829.1,29.0348225]
[1746388102265,2.82401,1829.2,1829.1,29.0348225]
[1746388102465,2.82401,1829.2,1829.1,30.1280825]
[1746388102667,1.7308,1829.2,1829.1,30.1280825]
[1746388103165,5.4188,1829.2,1829.1,30.1280825]
[1746388103662,11.2428,1829.2,1829.1,30.1280825]
[1746388105475,12.33601,1829.2,1829.1,30.1280825]
[1746388105773,17.33601,1829.2,1829.1,29.0348225]
[1746388107075,12.33601,1829.2,1829.1,29.0348225]
[1746388108577,15.54381,1829.2,1829.1,29.0348225]
[1746388110071,19.88028458,1829.2,1829.1,29.0348225]
[1746388112278,19.88028458,1829.2,1829.1,30.1280825]
[1746388113881,19.88028458,1829.2,1829.1,29.0348225]
[1746388114377,19.88028458,1829.2,1829.1,30.1280825]
[1746388114578,19.88028458,1829.2,1829.1,29.0348225]
[1746388115776,16.67248458,1829.2,1829.1,29.0348225]
[1746388116078,18.78707458,1829.2,1829.1,30.1280825]
[1746388116278,19.88028458,1829.2,1829.1,30.1280825]
[1746388116478,16.67248458,1829.2,1829.1,30.1280825]
[1746388116978,19.88028458,1829.2,1829.1,30.1280825]
[1746388118080,16.67248458,1829.2,1829.1,29.0348225]
[1746388118681,19.88028458,1829.2,1829.1,29.0348225]
[1746388119481,16.67248458,1829.2,1829.1,29.0348225]
[1746388119884,19.88028458,1829.2,1829.1,29.0348225]
[1746388121283,16.67248458,1829.2,1829.1,29.0348225]
[1746388121486,18.4819577,1829.2,1829.1,29.0348225]
[1746388125086,13.03308753,1829.2,1829.1,29.0348225]
[1746388132492,1.09326,1829.1,1829.0,2.81891]
[1746388133184,4.78126,1829.1,1829.0,2.81891]
[1746388133484,6.43186,1829.1,1829.0,2.81891]
[1746388133684,6.43186,1829.1,1829.0,1.7256]
[1746388135792,10.77542806,1829.1,1829.0,1.7256]
[1746388139097,9.12482806,1829.1,1829.0,2.81892]
[1746388139594,10.94677786,1829.1,1829.0,2.81892]
[1746388140394,9.85351786,1829.1,1829.0,2.81892]
[1746388142000,3.688,1829.1,1829.0,2.81892]
[1746388142296,4.78126,1829.1,1829.0,2.81892]
[1746388142600,3.688,1829.1,1829.0,2.81892]
[1746388143196,4.78126,1829.1,1829.0,2.81892]
[1746388143395,3.688,1829.1,1829.0,2.81892]
[1746388144200,3.688,1829.1,1829.0,7.81892]
[1746388145197,3.688,1829.1,1829.0,2.81892]
[1746388145704,7.33988955,1829.1,1829.0,2.81892]
[1746388153002,3.688,1829.1,1829.0,2.81892]
[1746388153697,3.688,1829.1,1829.0,7.81892]
[1746388154203,3.65188955,1829.2,1829.1,1.09326]
[1746388154404,3.65188955,1829.2,1829.1,7.60196]
[1746388154898,3.65188955,1829.2,1829.1,12.60196]
[1746388155603,3.65188955,1829.2,1829.1,7.60196]
[1746388156006,3.65188955,1829.4,1829.3,1.09315]
[1746388156203,3.65188955,1829.4,1829.3,7.75595]
[1746388157105,7.33988955,1829.4,1829.3,7.75595]
[1746388160107,3.65188955,1829.4,1829.3,7.75595]
[1746388160312,1.6571,1829.6,1829.5,1.09303]
[1746388160609,1.6571,1829.6,1829.5,4.30083]
[1746388161109,5.3451,1829.6,1829.5,4.30083]
[1746388167112,6.2014,1829.6,1829.5,4.30083]
[1746388168204,6.2014,1829.6,1829.5,6.02173]
[1746388168507,5.3451,1829.6,1829.5,6.02173]
[1746388172817,6.1515,1829.6,1829.5,6.02173]
[1746388188618,6.1515,1829.6,1829.5,2.81393]
[1746388188821,6.1515,1829.6,1829.5,6.02173]
[1746388190223,2.4635,1829.6,1829.5,6.02173]
[1746388190616,2.4635,1829.6,1829.5,4.30083]
[1746388191122,6.1515,1829.6,1829.5,4.30083]
[1746388195920,6.1515,1829.6,1829.5,7.74783]
[1746388200428,1.09303,1829.5,1829.4,1.09303]
[1746388200630,1.09309,1829.4,1829.3,4.30091]
[1746388200930,1.6236,1829.4,1829.3,4.30091]
[1746388201227,5.3116,1829.4,1829.3,4.30091]
[1746388201427,6.9303,1829.4,1829.3,4.30091]
[1746388203630,13.0956754,1829.4,1829.3,4.30091]
[1746388207531,10.58210181,1829.4,1829.3,4.30091]
[1746388209521,11.67519181,1829.4,1829.3,4.30091]
[1746388209726,10.58210181,1829.4,1829.3,4.30091]
[1746388210129,11.67519181,1829.4,1829.3,3.2078]
[1746388211235,10.58210181,1829.4,1829.3,4.30095]
[1746388211634,10.58210181,1829.4,1829.3,1.09315]
[1746388212034,10.58210181,1829.4,1829.2,3.447]
[1746388212035,11.67524181,1829.4,1829.2,4.54016]
[1746388212227,1.6339,1829.3,1829.2,4.54016]
[1746388213334,5.3219,1829.3,1829.2,4.54016]
[1746388214339,6.41505,1829.3,1829.2,3.447]
[1746388214536,1.09321,1829.2,1829.1,1.09322]
[1746388214738,1.09326,1829.1,1829.0,4.30108]
[1746388215039,1.93466,1829.1,1829.0,1.09332]
[1746388215235,3.52556,1829.1,1829.0,1.09332]
[1746388215645,2.4323,1829.1,1829.0,1.09332]
[1746388216235,6.1203,1829.1,1829.0,1.09332]
[1746388216538,5.2789,1829.1,1829.0,1.09332]
[1746388216739,5.2789,1829.1,1829.0,7.63372]
[1746388226547,3.688,1829.1,1829.0,7.63372]
[1746388227445,3.688,1829.1,1829.0,4.42592]
[1746388227645,3.688,1829.1,1829.0,7.63372]
[1746388231639,5.3481,1829.1,1829.0,7.63372]
[1746388231834,6.1538,1829.1,1829.0,7.63372]
[1746388232745,6.1538,1829.1,1829.0,4.30112]
[1746388238751,1.09338,1829.0,1828.8,3.2078]
[1746388238949,1.7138,1828.9,1828.8,3.2078]
[1746388239151,5.4018,1828.9,1828.8,4.30124]
[1746388239340,7.105,1828.9,1828.8,4.30124]
[1746388239851,8.19838,1828.9,1828.8,1.09344]
[1746388240354,1.09344,1828.8,1828.7,4.53246]
[1746388240651,1.7032,1828.8,1828.7,4.53246]
[1746388241150,5.3912,1828.8,1828.7,4.53246]
[1746388245352,5.3912,1828.8,1828.7,7.74026]
[1746388248554,5.3912,1828.8,1828.7,4.53246]
[1746388254849,6.48464,1828.8,1828.7,4.53246]
[1746388255045,5.3912,1828.8,1828.7,4.53246]
[1746388255350,6.48464,1828.8,1828.7,4.53246]
[1746388255655,6.48464,1828.8,1828.7,3.439]
[1746388255957,6.48464,1828.8,1828.7,4.5325]
[1746388259360,6.48464,1828.8,1828.7,3.439]
[1746388259559,1.09356,1828.7,1828.5,1.09359]
[1746388259761,2.5158,1828.6,1828.5,1.09359]
[1746388260260,6.2038,1828.6,1828.5,1.09359]
[1746388260859,5.3689,1828.6,1828.5,3.57719]
[1746388265968,5.3689,1828.6,1828.5,1.09359]
[1746388266166,7.0872,1828.6,1828.5,1.09359]
[1746388266758,8.18076,1828.6,1828.4,7.4947]
[1746388266959,1.7006,1828.5,1828.4,8.58838]
[1746388267160,2.79422,1828.5,1828.4,7.74048]
[1746388268067,2.79422,1828.5,1828.4,6.6468]
[1746388268270,6.48222,1828.5,1828.4,6.6468]
[1746388268464,6.48222,1828.5,1828.4,7.74048]
[1746388271561,6.48222,1828.5,1828.4,4.53268]
[1746388273570,6.48222,1828.5,1828.4,3.439]
[1746388274574,6.48222,1828.5,1828.4,4.53268]
[1746388275369,6.48222,1828.5,1828.4,3.439]
[1746388276675,6.48222,1828.5,1828.4,4.53268]
[1746388277477,6.48222,1828.5,1828.4,1.09368]
[1746388277676,5.3886,1828.5,1828.4,1.09368]
[1746388278976,6.48222,1828.5,1828.4,1.09368]
[1746388282078,1.09368,1828.4,1828.3,5.1469]
[1746388282281,1.5839,1828.4,1828.3,4.3015]
[1746388282473,2.386,1828.4,1828.3,4.3015]
[1746388283177,6.074,1828.4,1828.3,4.3015]
[1746388283881,7.16768,1828.4,1828.3,4.3015]
[1746388284081,7.16768,1828.4,1828.3,1.0937]
[1746388284382,6.074,1828.4,1828.3,1.0937]
[1746388288076,7.16768,1828.4,1828.3,1.0937]
[1746388288384,6.074,1828.4,1828.3,1.0937]
[1746388289989,7.16768,1828.4,1828.3,1.0937]
[1746388291984,7.16768,1828.4,1828.2,2.76786]
[1746388292191,2.437,1828.3,1828.2,1.09376]
[1746388293193,6.125,1828.3,1828.2,1.09376]
[1746388297599,6.125,1828.3,1828.1,9.35192]
[1746388297795,2.4588,1828.2,1828.1,9.35192]
[1746388298089,6.1468,1828.2,1828.1,8.53532]
[1746388298695,6.1468,1828.2,1828.1,10.22942]
[1746388299696,6.1468,1828.2,1828.1,7.02162]
[1746388299896,6.1468,1828.2,1828.1,10.22942]
[1746388301494,7.2406,1828.2,1828.1,10.22942]
[1746388301696,6.1468,1828.2,1828.1,10.22942]
[1746388302189,7.2406,1828.2,1828.1,10.22942]
[1746388302388,6.1468,1828.2,1828.1,10.22942]
[1746388302701,6.1468,1828.2,1828.1,6.78942]
[1746388308302,6.14103638,1828.2,1828.1,6.78942]
[1746388309086,6.14103638,1828.2,1828.1,3.58162]
[1746388309290,6.14103638,1828.2,1828.1,1.88752]
[1746388309496,7.23483638,1828.2,1828.1,1.88752]
[1746388310494,6.14103638,1828.2,1828.1,1.88752]
[1746388310700,7.23483638,1828.2,1828.1,1.09382]
[1746388311300,6.14103638,1828.2,1828.1,1.09382]
[1746388311600,7.23483638,1828.2,1828.1,1.09382]
[1746388312602,13.40068658,1828.2,1828.1,1.09382]
[1746388313201,12.30688658,1828.2,1828.0,1.09388]
[1746388313395,1.711,1828.1,1828.0,1.09388]
[1746388314099,5.399,1828.1,1828.0,1.09388]
[1746388314902,6.49286,1828.1,1828.0,1.09388]
[1746388315296,6.49286,1828.1,1828.0,1.09392]
[1746388316103,16.31485654,1828.1,1828.0,1.09392]
[1746388319207,15.22099654,1828.1,1828.0,1.09392]
[1746388319508,11.5648502,1828.1,1828.0,3.57502]
[1746388321706,9.8538502,1828.1,1828.0,3.57502]
[1746388323406,3.688,1828.1,1828.0,3.57502]
[1746388327013,3.65424152,1828.2,1828.0,7.4811]
[1746388327213,7.34224152,1828.2,1828.1,9.47076]
[1746388327607,7.34224152,1828.2,1828.1,14.47076]
[1746388328114,3.65424152,1828.2,1828.1,14.47076]
[1746388329115,7.34224152,1828.2,1828.1,14.47076]
[1746388330208,3.65424152,1828.2,1828.1,9.47076]
[1746388331917,1.6518,1828.4,1828.3,1.09374]
[1746388332118,5.3398,1828.4,1828.3,1.09374]
[1746388332724,5.3398,1828.4,1828.3,2.76814]
[1746388348219,5.3398,1828.4,1828.3,1.09374]
[1746388348418,6.1565,1828.4,1828.3,1.09374]
[1746388366038,6.1565,1828.4,1828.2,4.30156]
[1746388366244,2.543,1828.3,1828.2,4.30156]
[1746388367140,6.231,1828.3,1828.2,4.30156]
[1746388369448,10.58258368,1828.3,1828.2,4.30156]
[1746388373147,12.39678249,1828.3,1828.2,4.30156]
[1746388380452,9.85378249,1828.3,1828.2,4.30156]
[1746388380657,9.85378249,1828.3,1828.2,6.00686]
[1746388380857,9.85378249,1828.3,1828.2,6.86356]
[1746388382860,3.688,1828.3,1828.2,6.86356]
[1746388389465,3.688,1828.3,1828.2,3.65576]
[1746388389660,3.688,1828.3,1828.2,6.86356]
[1746388395361,2.40278,1828.3,1828.2,6.86356]
[1746388396167,3.65416435,1828.5,1828.4,1.09368]
[1746388396368,3.65416435,1828.5,1828.4,7.73948]
[1746388396866,3.65416435,1828.5,1828.4,10.16518]
[1746388398970,6.15686435,1828.6,1828.5,1.09362]
[1746388399267,9.84486435,1828.6,1828.5,1.09362]
[1746388411771,10.54213356,1828.6,1828.5,1.09362]
[1746388414869,9.84486435,1828.6,1828.5,1.09362]
[1746388417972,8.99426435,1828.6,1828.5,1.09362]
[1746388418165,5.30626435,1828.6,1828.5,3.60172]
[1746388421378,3.65416435,1828.6,1828.5,3.60172]
[1746388423380,1.5704,1828.7,1828.6,1.09356]
[1746388423580,1.5704,1828.7,1828.6,5.88496]
[1746388424081,5.2584,1828.7,1828.6,5.88496]
[1746388427186,1.5704,1828.7,1828.6,5.88496]
[1746388430179,5.2584,1828.7,1828.6,4.30136]
[1746388433488,11.42407763,1828.7,1828.6,4.30136]
[1746388435489,11.42407763,1828.7,1828.6,1.09356]
[1746388445492,5.9556373,1828.7,1828.6,1.09356]
[1746388445791,7.0491373,1828.7,1828.6,1.09356]
[1746388446791,1.09357,1828.6,1828.5,1.09358]
[1746388446993,3.60527,1828.6,1828.5,1.09358]
[1746388447290,7.29327,1828.6,1828.5,1.09358]
[1746388447691,1.09362,1828.5,1828.4,4.30145]
[1746388447892,3.65242,1828.5,1828.4,4.30145]
[1746388448193,7.34042,1828.5,1828.4,4.30145]
[1746388448393,7.34042,1828.5,1828.4,1.09368]
[1746388453592,8.0376573,1828.5,1828.4,1.09368]
[1746388456804,13.51572361,1828.5,1828.4,1.09368]
[1746388465914,17.16596069,1828.5,1828.4,1.09368]
[1746388466103,11.68789438,1828.5,1828.4,1.09368]
[1746388472914,10.59427438,1828.5,1828.2,5.9259]
[1746388473216,1.09374,1828.3,1828.2,4.53077]
[1746388473614,1.0938,1828.2,1828.1,5.10976]
[1746388473816,4.4694,1828.2,1828.1,5.10976]
[1746388474417,4.4694,1828.2,1828.1,1.90196]
[1746388474618,3.3756,1828.2,1828.1,1.90196]
[1746388474818,3.3756,1828.2,1828.1,3.53676]
[1746388475521,4.4694,1828.2,1828.1,3.53676]
[1746388477217,8.1574,1828.2,1828.1,3.53676]
[1746388477417,12.50442722,1828.2,1828.1,3.53676]
[1746388480417,8.81642722,1828.2,1828.1,3.53676]
[1746388481223,12.50442722,1828.2,1828.1,3.53676]
[1746388482822,12.50442722,1828.2,1828.0,5.39177]
[1746388483024,1.5911,1828.1,1828.0,5.39177]
[1746388485323,1.5911,1828.1,1828.0,8.59957]
[1746388487219,1.5911,1828.1,1828.0,10.18957]
[1746388489630,3.64978992,1828.2,1828.1,1.09386]
[1746388489829,3.64978992,1828.2,1828.1,2.81396]
[1746388490030,3.64978992,1828.2,1828.1,7.81396]
[1746388491628,3.64978992,1828.2,1828.1,2.81396]
[1746388492126,15.45930651,1828.4,1828.3,1.09374]
[1746388492127,3.64978992,1828.4,1828.3,1.09374]
[1746388493030,5.36148992,1828.4,1828.3,2.76004]
[1746388493229,9.04948992,1828.4,1828.3,2.76004]
[1746388497823,9.87798992,1828.4,1828.3,2.76004]
[1746388498029,10.57531832,1828.4,1828.3,2.76004]
[1746388500227,9.74681832,1828.4,1828.3,2.76004]
[1746388501234,6.05881832,1828.4,1828.3,2.76004]
[1746388501627,6.87461832,1828.4,1828.3,2.76004]
[1746388502336,10.56261832,1828.4,1828.3,2.76004]
[1746388503237,6.87461832,1828.4,1828.3,2.76004]
[1746388504138,10.56261832,1828.4,1828.3,2.76004]
[1746388504437,10.56261832,1828.4,1828.3,1.09374]
[1746388504739,11.41731832,1828.4,1828.3,1.09374]
[1746388505633,12.51099832,1828.4,1828.3,1.09374]
[1746388505937,1.09374,1828.3,1828.2,1.09376]
[1746388506133,2.79904,1828.3,1828.2,1.09376]
[1746388506333,6.48704,1828.3,1828.2,1.09376]
[1746388507338,5.3933,1828.3,1828.2,1.09376]
[1746388508639,15.21848463,1828.3,1828.2,1.09376]
[1746388512040,9.04308992,1828.3,1828.2,1.09376]
[1746388519247,5.35508992,1828.3,1828.2,1.09376]
[1746388519449,6.05245512,1828.3,1828.2,3.49806]
[1746388519639,3.04279512,1828.3,1828.2,9.35746]
[1746388520244,3.04279512,1828.3,1828.2,13.04546]
[1746388521151,4.72719512,1828.3,1828.2,4.35746]
[1746388524052,1.6844,1828.3,1828.2,4.35746]
[1746388526953,1.6844,1828.3,1828.2,1.92296]
[1746388527157,1.6844,1828.3,1828.2,1.09376]
[1746388529255,6.6844,1828.3,1828.1,3.2078]
[1746388529560,1.7114,1828.2,1828.0,3.437]
[1746388529761,4.54213,1828.2,1828.0,3.437]
[1746388530258,1.7369,1828.1,1828.0,4.53092]
[1746388532368,2.83076,1828.1,1828.0,4.53092]
[1746388533065,6.51876,1828.1,1828.0,4.53092]
[1746388534270,7.2162012,1828.1,1828.0,4.53092]
[1746388537472,6.51876,1828.1,1828.0,4.53092]
[1746388540278,2.83076,1828.1,1828.0,4.53092]
[1746388541174,6.51876,1828.1,1828.0,4.53092]
[1746388545178,2.83076,1828.1,1828.0,4.53092]
[1746388546078,6.51876,1828.1,1828.0,4.53092]
[1746388547181,2.83076,1828.1,1828.0,4.53092]
[1746388547882,1.7369,1828.1,1828.0,4.53092]
[1746388548080,2.83076,1828.1,1828.0,4.53092]
[1746388549078,2.83076,1828.1,1828.0,7.73872]
[1746388549079,1.7369,1828.1,1828.0,7.73872]
[1746388549283,1.7369,1828.1,1828.0,9.44102]
[1746388551689,0.8567,1828.2,1828.1,1.09386]
[1746388551880,0.8567,1828.2,1828.1,2.80936]
[1746388552279,1.5886,1828.3,1828.2,1.0938]
[1746388554285,1.5886,1828.3,1828.2,1.8892]
[1746388555277,5.47806631,1828.4,1828.3,1.09374]
[1746388555481,5.47806631,1828.4,1828.3,7.10104]
[1746388557384,1.6515,1828.5,1828.4,1.09368]
[1746388557684,1.6515,1828.5,1828.4,3.68138]
[1746388560092,5.3395,1828.5,1828.4,3.68138]
[1746388561185,1.6515,1828.5,1828.4,3.68138]
[1746388566696,1.6515,1828.5,1828.4,1.09368]
[1746388569298,1.6515,1828.5,1828.3,4.5407]
[1746388569495,2.71908,1828.4,1828.2,3.2078]
[1746388569801,2.77534,1828.3,1828.2,4.3016]
[1746388570097,1.6816,1828.3,1828.2,4.3016]
[1746388574202,1.6816,1828.3,1828.2,5.1684]
[1746388574403,1.6816,1828.3,1828.2,6.7485]
[1746388582114,1.6816,1828.3,1828.2,5.1684]
[1746388582504,1.6816,1828.3,1828.2,1.9606]
[1746388586308,1.6816,1828.3,1828.2,3.6385]
[1746388591509,1.6816,1828.3,1828.2,1.9606]
[1746388600118,2.37893328,1828.3,1828.2,1.9606]
[1746388605320,2.37893328,1828.3,1828.2,1.0938]
[1746388608221,7.85699959,1828.3,1828.2,1.0938]
[1746388611824,2.37893328,1828.3,1828.2,1.0938]
[1746388615320,7.85699959,1828.3,1828.2,1.0938]
[1746388620640,8.95073959,1828.3,1828.2,1.0938]
[1746388621639,7.85699959,1828.3,1828.2,1.0938]
[1746388622338,1.0938,1828.2,1828.1,3.446]
[1746388622529,2.5481,1828.2,1828.0,5.3195]
[1746388622732,3.64195,1828.2,1828.0,5.3195]
[1746388622929,1.686,1828.1,1828.0,5.3195]
[1746388624741,2.77986,1828.1,1828.0,5.3195]
[1746388625145,1.686,1828.1,1828.0,5.3195]
[1746388625842,7.86139959,1828.1,1828.0,5.3195]
[1746388630140,2.38333328,1828.1,1828.0,5.3195]
[1746388643653,6.03832562,1828.1,1828.0,5.3195]